fUSD/lending_fUSD_20250629
["ID","MTS","AMOUNT","RATE_DAILY","PERIOD"]
[368525028,1751195465849,-957.14,0.00028219,3]
[368525029,1751195465858,-490.0,0.00028219,3]
[368525030,1751195465867,-490.0,0.00028219,3]
[368525031,1751195465876,-490.0,0.00028219,3]
[368525032,1751195465886,-490.0,0.00028219,3]
[368525033,1751195465895,-490.0,0.00028219,3]
[368525034,1751195465904,-532.08,0.00028219,3]
[368525035,1751195465913,-490.0,0.00028219,3]
[368525036,1751195465922,-490.0,0.00028219,3]
[368525037,1751195465931,-1422.6,0.00028219,3]
[368525038,1751195465941,-490.0,0.00028219,3]
[368525039,1751195465950,-490.0,0.00028219,3]
[368525040,1751195465959,-490.0,0.00028219,3]
[368525041,1751195465969,-490.0,0.00028219,3]
[368525042,1751195465978,-756.27,0.00028219,3]
[368525043,1751195465988,-1401.37,0.00028219,3]
[368525044,1751195465998,-915.4,0.00028219,3]
[368525045,1751195466009,-490.0,0.00028219,3]
[368525046,1751195466019,-490.0,0.00028219,3]
[368525047,1751195466029,-1294.27,0.00028219,3]
[368525048,1751195466039,-759.55,0.00028219,3]
[368525049,1751195466050,-598.76,0.00028219,3]
[368525050,1751195466060,-1087.93,0.00028219,3]
[368525051,1751195466070,-490.0,0.00028219,3]
[368525052,1751195466080,-490.0,0.00028219,3]
[368525053,1751195466089,-490.0,0.00028219,3]
[368525054,1751195466099,-490.0,0.00028219,3]
[368525055,1751195466108,-490.0,0.00028219,3]
[368525056,1751195466118,-490.0,0.00028219,3]
[368525057,1751195466130,-490.0,0.00028219,3]
[368525058,1751195466140,-1267.05,0.00028219,3]
[368525059,1751195466149,-525.72,0.00028219,3]
[368525060,1751195466159,-490.0,0.00028219,3]
[368525061,1751195466169,-490.0,0.00028219,3]
[368525062,1751195466178,-1134.9,0.00028219,3]
[368525063,1751195466188,-1224.95,0.00028219,3]
[368525064,1751195466197,-493.99,0.00028219,3]
[368525065,1751195466208,-490.0,0.00028219,3]
[368525066,1751195466218,-571.79,0.00028219,3]
[368525067,1751195466227,-490.0,0.00028219,3]
[368525068,1751195466237,-490.0,0.00028219,3]
[368525069,1751195466246,-490.0,0.00028219,3]
[368525070,1751195466256,-490.0,0.00028219,3]
[368525071,1751195466266,-735.44,0.00028219,3]
[368525072,1751195466275,-549.79,0.00028219,3]
[368525073,1751195466284,-490.0,0.00028219,3]
[368525074,1751195466293,-738.46,0.00028219,3]
[368525075,1751195466302,-954.67,0.00028219,3]
[368525076,1751195466311,-490.0,0.00028219,3]
[368525077,1751195466322,-1388.19,0.00028219,3]
[368525078,1751195466333,-843.616844,0.00028219,3]
[368525079,1751195466343,-490.0,0.00028219,3]
[368525080,1751195466353,-490.0,0.00028219,3]
[368525081,1751195466362,-490.0,0.00028219,3]
[368525082,1751195466372,-490.0,0.00028219,3]
[368525083,1751195466381,-490.0,0.00028219,3]
[368525084,1751195466390,-153.035083,0.00028219,3]
[368525085,1751195466400,-292.491065,0.00028219,3]
[368525086,1751195466410,-729.8,0.00028219,3]
[368525087,1751195466419,-618.02,0.00028219,3]
[368525088,1751195466427,-717.63,0.00028219,3]
[368525089,1751195466436,-353.37469475,0.00028219,3]
[368525090,1751195466445,-209.8355726,0.00028219,3]
[368525091,1751195466455,-490.0,0.00028219,3]
[368525092,1751195466464,-490.0,0.00028219,3]
[368525093,1751195466473,-779.17,0.00028219,3]
[368525094,1751195466482,-490.0,0.00028219,3]
[368525095,1751195466491,-490.49,0.00028219,3]
[368525096,1751195466500,-490.0,0.00028219,3]
[368525097,1751195466509,-490.46,0.00028219,3]
[368525098,1751195466519,-490.0,0.00028219,3]
[368525099,1751195466527,-1183.749927,0.00028219,3]
[368525100,1751195466537,-701.72,0.00028219,3]
[368525101,1751195466547,-490.0,0.00028219,3]
[368525102,1751195466556,-490.0,0.00028219,3]
[368525103,1751195466565,-1237.98,0.00028219,3]
[368525104,1751195466574,-1063.67,0.00028219,3]
[368525105,1751195466583,-663.95,0.00028219,3]
[368525106,1751195466592,-490.0,0.00028219,3]
[368525107,1751195466602,-862.32,0.00028219,3]
[368525108,1751195466612,-827.18,0.00028219,3]
[368525109,1751195466621,-490.0,0.00028219,3]
[368525110,1751195466630,-490.0,0.00028219,3]
[368525111,1751195466640,-490.0,0.00028219,3]
[368525112,1751195466650,-547.47,0.00028219,3]
[368525113,1751195466660,-823.41,0.00028219,3]
[368525114,1751195466670,-490.0,0.00028219,3]
[368525115,1751195466679,-668.76,0.00028219,3]
[368525116,1751195466688,-748.67,0.00028219,3]
[368525117,1751195466698,-490.0,0.00028219,3]
[368525118,1751195466707,-490.0,0.00028219,3]
[368525119,1751195466716,-1401.904447,0.00028219,3]
[368525120,1751195466725,-371.15147305,0.00028219,3]
[368525121,1751195466734,-490.0,0.00028219,3]
[368525122,1751195466743,-490.0,0.00028219,3]
[368525123,1751195466752,-588.25,0.00028219,3]
[368525124,1751195466760,-1344.91,0.00028219,3]
[368525125,1751195466769,-490.0,0.00028219,3]
[368525126,1751195466778,-490.0,0.00028219,3]
[368525127,1751195466787,-490.0,0.00028219,3]
[368525128,1751195466796,-688.18,0.00028219,3]
[368525129,1751195466805,-490.0,0.00028219,3]
[368525130,1751195466814,-918.01,0.00028219,3]
[368525131,1751195466822,-490.0,0.00028219,3]
[368525132,1751195466831,-300.0,0.00028219,3]
[368525133,1751195466840,-606.16,0.00028219,3]
[368525134,1751195466849,-490.0,0.00028219,3]
[368525135,1751195466859,-504.36,0.00028219,3]
[368525136,1751195466867,-490.0,0.00028219,3]
[368525137,1751195466877,-860.61,0.00028219,3]
[368525138,1751195466886,-490.0,0.00028219,3]
[368525139,1751195466895,-490.0,0.00028219,3]
[368525140,1751195466904,-492.65,0.00028219,3]
[368525141,1751195466913,-1029.14,0.00028219,3]
[368525142,1751195466922,-490.95,0.00028219,3]
[368525143,1751195466932,-490.0,0.00028219,3]
[368525144,1751195466941,-490.0,0.00028219,3]
[368525145,1751195466950,-490.0,0.00028219,3]
[368525146,1751195466960,-519.34443402,0.00028219,3]
[368525147,1751195466969,-879.43,0.00028219,3]
[368525148,1751195466978,-576.42,0.00028219,3]
[368525149,1751195466988,-490.0,0.00028219,3]
[368525150,1751195466997,-490.0,0.00028219,3]
[368525151,1751195467007,-490.0,0.00028219,3]
[368525152,1751195467016,-593.25,0.00028219,3]
[368525153,1751195467025,-490.0,0.00028219,3]
[368525154,1751195467034,-537.32,0.00028219,3]
[368525155,1751195467043,-1231.36,0.00028219,3]
[368525156,1751195467052,-1062.64,0.00028219,3]
[368525157,1751195467062,-603.18,0.00028219,3]
[368525158,1751195467071,-587.36,0.00028219,3]
[368525159,1751195467080,-576.03,0.00028219,3]
[368525160,1751195467089,-490.0,0.00028219,3]
[368525161,1751195467098,-490.0,0.00028219,3]
[368525162,1751195467107,-490.0,0.00028219,3]
[368525163,1751195467119,-618.5,0.00028219,3]
[368525164,1751195467128,-996.14,0.00028219,3]
[368525165,1751195467137,-588.38,0.00028219,3]
[368525166,1751195467146,-490.0,0.00028219,3]
[368525167,1751195467155,-559.62,0.00028219,3]
[368525168,1751195467165,-593.04,0.00028219,3]
[368525169,1751195467175,-543.61,0.00028219,3]
[368525170,1751195467184,-594.32,0.00028219,3]
[368525171,1751195467194,-815.71,0.00028219,3]
[368525172,1751195467203,-490.0,0.00028219,3]
[368525173,1751195467212,-490.0,0.00028219,3]
[368525174,1751195467222,-490.0,0.00028219,3]
[368525175,1751195467231,-490.0,0.00028219,3]
[368525176,1751195467240,-496.77,0.00028219,3]
[368525177,1751195467249,-490.0,0.00028219,3]
[368525178,1751195467259,-630.45,0.00028219,3]
[368525179,1751195467269,-490.0,0.00028219,3]
[368525180,1751195467279,-612.62,0.00028219,3]
[368525181,1751195467290,-490.0,0.00028219,3]
[368525182,1751195467301,-490.0,0.00028219,3]
[368525183,1751195467311,-734.99,0.00028219,3]
[368525184,1751195467322,-490.0,0.00028219,3]
[368525185,1751195467334,-941.86,0.00028219,3]
[368525186,1751195467346,-606.81,0.00028219,3]
[368525187,1751195467356,-490.0,0.00028219,3]
[368525188,1751195467367,-490.0,0.00028219,3]
[368525189,1751195467376,-490.0,0.00028219,3]
[368525190,1751195467385,-490.0,0.00028219,3]
[368525191,1751195467394,-490.0,0.00028219,3]
[368525192,1751195467404,-1147.39,0.00028219,3]
[368525193,1751195467413,-490.0,0.00028219,3]
[368525194,1751195467423,-534.75,0.00028219,3]
[368525195,1751195467432,-768.88,0.00028219,3]
[368525196,1751195467441,-490.0,0.00028219,3]
[368525197,1751195467451,-501.48,0.00028219,3]
[368525198,1751195467460,-490.0,0.00028219,3]
[368525199,1751195467470,-765.22,0.00028219,3]
[368525200,1751195467480,-490.0,0.00028219,3]
[368525201,1751195467489,-490.0,0.00028219,3]
[368525202,1751195467498,-624.11,0.00028219,3]
[368525203,1751195467507,-490.0,0.00028219,3]
[368525204,1751195467517,-490.0,0.00028219,3]
[368525205,1751195467527,-490.0,0.00028219,3]
[368525206,1751195467536,-518.02,0.00028219,3]
[368525207,1751195467546,-490.0,0.00028219,3]
[368525208,1751195467555,-691.65,0.00028219,3]
[368525209,1751195467564,-490.0,0.00028219,3]
[368525210,1751195467574,-490.0,0.00028219,3]
[368525211,1751195467583,-490.0,0.00028219,3]
[368525212,1751195467593,-1554.34,0.00028219,3]
[368525213,1751195467603,-536.67,0.00028219,3]
[368525214,1751195467612,-490.0,0.00028219,3]
[368525215,1751195467622,-490.0,0.00028219,3]
[368525216,1751195467632,-708.27,0.00028219,3]
[368525217,1751195467641,-1504.15,0.00028219,3]
[368525218,1751195467650,-490.0,0.00028219,3]
[368525219,1751195467659,-500.0,0.00028219,3]
[368525220,1751195467668,-490.0,0.00028219,3]
[368525221,1751195467678,-490.0,0.00028219,3]
[368525222,1751195467687,-480.22316521,0.00028219,3]
[368525223,1751195467696,-516.87,0.00028219,3]
[368525224,1751195467706,-490.0,0.00028219,3]
[368525225,1751195467715,-490.0,0.00028219,3]
[368525226,1751195467725,-490.0,0.00028219,3]
[368525227,1751195467734,-490.0,0.00028219,3]
[368525228,1751195467744,-490.0,0.00028219,3]
[368525229,1751195467753,-490.0,0.00028219,3]
[368525230,1751195467762,-604.89,0.00028219,3]
[368525231,1751195467772,-490.0,0.00028219,3]
[368525232,1751195467781,-319.10223158,0.00028219,3]
[368525233,1751195467791,-1638.76,0.00028219,3]
[368525234,1751195467800,-490.0,0.00028219,3]
[368525235,1751195467809,-490.0,0.00028219,3]
[368525236,1751195467819,-490.0,0.00028219,3]
[368525237,1751195467828,-490.0,0.00028219,3]
[368525238,1751195467837,-590.89,0.00028219,3]
[368525239,1751195467847,-490.0,0.00028219,3]
[368525240,1751195467859,-1217.95,0.00028219,3]
[368525241,1751195467867,-490.0,0.00028219,3]
[368525242,1751195467877,-490.0,0.00028219,3]
[368525243,1751195467887,-528.4,0.00028219,3]
[368525244,1751195467899,-498.25,0.00028219,3]
[368525245,1751195467908,-1047.55,0.00028219,3]
[368525246,1751195467917,-932.64,0.00028219,3]
[368525247,1751195467927,-1535.93,0.00028219,3]
[368525248,1751195467937,-490.0,0.00028219,3]
[368525249,1751195467947,-1410.37,0.00028219,3]
[368525250,1751195467959,-857.63,0.00028219,3]
[368525251,1751195467969,-490.0,0.00028219,3]
[368525252,1751195467979,-490.0,0.00028219,3]
[368525253,1751195467989,-490.0,0.00028219,3]
[368525254,1751195467998,-764.97,0.00028219,3]
[368525255,1751195468008,-490.0,0.00028219,3]
[368525256,1751195468019,-551.77371429,0.00028219,3]
[368525257,1751195468030,-1226.51,0.00028219,3]
[368525258,1751195468040,-204.76583276,0.00028219,3]
[368525259,1751195468050,-719.95,0.00028219,3]
[368525260,1751195468060,-979.74,0.00028219,3]
[368525261,1751195468070,-991.19,0.00028219,3]
[368525262,1751195468079,-490.0,0.00028219,3]
[368525263,1751195468089,-490.0,0.00028219,3]
[368525264,1751195468098,-892.18,0.00028219,3]
[368525265,1751195468108,-490.0,0.00028219,3]
[368525266,1751195468117,-490.0,0.00028219,3]
[368525267,1751195468127,-490.0,0.00028219,3]
[368525268,1751195468137,-523.71,0.00028219,3]
[368525269,1751195468146,-490.0,0.00028219,3]
[368525270,1751195468155,-490.0,0.00028219,3]
[368525271,1751195468165,-490.0,0.00028219,3]
[368525272,1751195468174,-490.0,0.00028219,3]
[368525273,1751195468184,-490.0,0.00028219,3]
[368525274,1751195468195,-1618.13,0.00028219,3]
[368525275,1751195468204,-1261.23,0.00028219,3]
[368525276,1751195468214,-662.39,0.00028219,3]
[368525277,1751195468224,-533.43,0.00028219,3]
[368525278,1751195468234,-490.0,0.00028219,3]
[368525279,1751195468244,-330.0,0.00028219,3]
[368525280,1751195468254,-851.98,0.00028219,3]
[368525281,1751195468264,-3244.07,0.00028219,3]
[368525282,1751195468274,-490.0,0.00028219,3]
[368525283,1751195468284,-490.0,0.00028219,3]
[368525284,1751195468294,-490.0,0.00028219,3]
[368525285,1751195468305,-490.0,0.00028219,3]
[368525286,1751195468314,-490.0,0.00028219,3]
[368525287,1751195468326,-490.0,0.00028219,3]
[368525288,1751195468337,-650.15,0.00028219,3]
[368525289,1751195468349,-643.65,0.00028219,3]
[368525290,1751195468363,-588.08,0.00028219,3]
[368525291,1751195468372,-793.06,0.00028219,3]
[368525292,1751195468382,-1494.92,0.00028219,3]
[368525293,1751195468392,-11062.2,0.00028219,3]
[368525294,1751195468402,-650.49,0.00028219,3]
[368525295,1751195468413,-1369.42,0.00028219,3]
[368525296,1751195468423,-490.0,0.00028219,3]
[368525297,1751195468432,-490.0,0.00028219,3]
[368525298,1751195468441,-490.0,0.00028219,3]
[368525299,1751195468452,-490.0,0.00028219,3]
[368525300,1751195468462,-992.98,0.00028219,3]
[368525301,1751195468472,-2865.08,0.00028219,3]
[368525302,1751195468481,-490.0,0.00028219,3]
[368525303,1751195468491,-490.0,0.00028219,3]
[368525304,1751195468500,-490.0,0.00028219,3]
[368525305,1751195468511,-1255.19,0.00028219,3]
[368525306,1751195468522,-1048.51,0.00028219,3]
[368525307,1751195468533,-895.06,0.00028219,3]
[368525308,1751195468543,-1140.15,0.00028219,3]
[368525309,1751195468555,-1475.7,0.00028219,3]
[368525310,1751195468565,-1098.84,0.00028219,3]
[368525311,1751195468575,-689.9,0.00028219,3]
[368525312,1751195468585,-221.21047739,0.00028219,3]
[368525313,1751195468596,-269.34133891,0.00028219,3]
[368525314,1751195468606,-509.89,0.00028219,3]
[368525315,1751195468615,-846.61,0.00028219,3]
[368525316,1751195468626,-490.0,0.00028219,3]
[368525317,1751195468637,-800.75,0.00028219,3]
[368525318,1751195468648,-490.0,0.00028219,3]
[368525319,1751195468658,-1724.34,0.00028219,3]
[368525320,1751195468668,-490.0,0.00028219,3]
[368525321,1751195468680,-839.61,0.00028219,3]
[368525322,1751195468690,-1838.21,0.00028219,3]
[368525323,1751195468699,-490.0,0.00028219,3]
[368525324,1751195468709,-1420.15,0.00028219,3]
[368525325,1751195468720,-490.0,0.00028219,3]
[368525326,1751195468730,-511.65,0.00028219,3]
[368525327,1751195468740,-1365.53,0.00028219,3]
[368525328,1751195468750,-738.89,0.00028219,3]
[368525329,1751195468759,-1126.33,0.00028219,3]
[368525330,1751195468769,-490.0,0.00028219,3]
[368525331,1751195468779,-753.94,0.00028219,3]
[368525332,1751195468788,-4179.4,0.00028219,3]
[368525333,1751195468798,-490.0,0.00028219,3]
[368525334,1751195468808,-2082.18,0.00028219,3]
[368525335,1751195468818,-3115.11,0.00028219,3]
[368525336,1751195468827,-490.0,0.00028219,3]
[368525337,1751195468837,-490.0,0.00028219,3]
[368525338,1751195468846,-807.19,0.00028219,3]
[368525339,1751195468856,-1049.11,0.00028219,3]
[368525340,1751195468866,-740.57,0.00028219,3]
[368525341,1751195468876,-490.0,0.00028219,3]
[368525342,1751195468886,-490.0,0.00028219,3]
[368525343,1751195468895,-1044.97,0.00028219,3]
[368525344,1751195468905,-490.0,0.00028219,3]
[368525345,1751195468914,-1018.69,0.00028219,3]
[368525346,1751195468924,-1329.73,0.00028219,3]
[368525347,1751195468934,-664.26,0.00028219,3]
[368525348,1751195468944,-765.79,0.00028219,3]
[368525349,1751195468953,-490.0,0.00028219,3]
[368525350,1751195468963,-1231.21,0.00028219,3]
[368525351,1751195468974,-5898.08,0.00028219,3]
[368525352,1751195468983,-1354.66,0.00028219,3]
[368525353,1751195468993,-801.57,0.00028219,3]
[368525354,1751195469003,-678.52,0.00028219,3]
[368525355,1751195469012,-490.0,0.00028219,3]
[368525356,1751195469022,-490.0,0.00028219,3]
[368525357,1751195469033,-493.92337147,0.00028219,3]
[368525358,1751195469046,-728.11,0.00028219,3]
[368525359,1751195469057,-490.0,0.00028219,3]
[368525360,1751195469067,-490.0,0.00028219,3]
[368525361,1751195469076,-853.69,0.00028219,3]
[368525362,1751195469086,-2091.4,0.00028219,3]
[368525363,1751195469095,-1560.41,0.00028219,3]
[368525364,1751195469104,-490.0,0.00028219,3]
[368525365,1751195469114,-898.14,0.00028219,3]
[368525366,1751195469123,-490.0,0.00028219,3]
[368525367,1751195469133,-490.0,0.00028219,3]
[368525368,1751195469144,-751.28,0.00028219,3]
[368525369,1751195469154,-490.0,0.00028219,3]
[368525370,1751195469165,-1923.3,0.00028219,3]
[368525371,1751195469175,-1248.49,0.00028219,3]
[368525372,1751195469185,-824.08,0.00028219,3]
[368525373,1751195469197,-490.0,0.00028219,3]
[368525374,1751195469207,-836.36,0.00028219,3]
[368525375,1751195469217,-2818.09,0.00028219,3]
[368525376,1751195469226,-2281.84,0.00028219,3]
[368525377,1751195469236,-1208.52,0.00028219,3]
[368525378,1751195469246,-490.0,0.00028219,3]
[368525379,1751195469255,-1308.74,0.00028219,3]
[368525380,1751195469265,-812.38,0.00028219,3]
[368525381,1751195469274,-490.0,0.00028219,3]
[368525382,1751195469284,-965.91,0.00028219,3]
[368525383,1751195469295,-1092.36,0.00028219,3]
[368525384,1751195469304,-2507.76,0.00028219,3]
[368525385,1751195469314,-490.0,0.00028219,3]
[368525386,1751195469326,-490.0,0.00028219,3]
[368525387,1751195469335,-1392.28,0.00028219,3]
[368525388,1751195469344,-545.7,0.00028219,3]
[368525389,1751195469353,-756.84,0.00028219,3]
[368525390,1751195469363,-973.2,0.00028219,3]
[368525391,1751195469373,-490.0,0.00028219,3]
[368525392,1751195469382,-490.0,0.00028219,3]
[368525393,1751195469391,-686.34,0.00028219,3]
[368525394,1751195469403,-1668.27,0.00028219,3]
[368525395,1751195469413,-6899.51,0.00028219,3]
[368525396,1751195469423,-875.0,0.00028219,3]
[368525397,1751195469432,-490.0,0.00028219,3]
[368525398,1751195469442,-1310.27,0.00028219,3]
[368525399,1751195469451,-550.14,0.00028219,3]
[368525400,1751195469462,-490.0,0.00028219,3]
[368525401,1751195469472,-1492.54,0.00028219,3]
[368525402,1751195469481,-678.08,0.00028219,3]
[368525403,1751195469493,-598.31,0.00028219,3]
[368525404,1751195469503,-490.0,0.00028219,3]
[368525405,1751195469513,-1285.64,0.00028219,3]
[368525406,1751195469523,-678.33,0.00028219,3]
[368525407,1751195469534,-1183.52,0.00028219,3]
[368525408,1751195469544,-2084.42,0.00028219,3]
[368525409,1751195469553,-2071.23,0.00028219,3]
[368525410,1751195469563,-1111.98,0.00028219,3]
[368525411,1751195469572,-1343.62,0.00028219,3]
[368525412,1751195469582,-2149.28,0.00028219,3]
[368525413,1751195469591,-1189.09,0.00028219,3]
[368525414,1751195469601,-624.68,0.00028219,3]
[368525415,1751195469610,-487.84079974,0.00028219,3]
[368525416,1751195469619,-490.0,0.00028219,3]
[368525417,1751195469630,-1713.38,0.00028219,3]
[368525418,1751195469639,-728.39,0.00028219,3]
[368525419,1751195469649,-490.0,0.00028219,3]
[368525420,1751195469659,-490.0,0.00028219,3]
[368525421,1751195469669,-1929.28,0.00028219,3]
[368525422,1751195469678,-716.65,0.00028219,3]
[368525423,1751195469687,-490.0,0.00028219,3]
[368525424,1751195469697,-1448.19,0.00028219,3]
[368525425,1751195469709,-950.17,0.00028219,3]
[368525426,1751195469959,-490.0,0.00028219,3]
[368525427,1751195469977,-490.0,0.00028219,3]
[368525428,1751195469987,-4228.03,0.00028219,3]
[368525429,1751195469997,-1415.52,0.00028219,3]
[368525430,1751195470006,-578.07,0.00028219,3]
[368525431,1751195470015,-1294.67,0.00028219,3]
[368525432,1751195470024,-2873.11,0.00028219,3]
[368525433,1751195470033,-2568.99,0.00028219,3]
[368525434,1751195470042,-490.0,0.00028219,3]
[368525435,1751195470051,-490.0,0.00028219,3]
[368525436,1751195470061,-490.0,0.00028219,3]
[368525437,1751195470070,-490.0,0.00028219,3]
[368525438,1751195470079,-490.0,0.00028219,3]
[368525439,1751195470089,-1298.15,0.00028219,3]
[368525440,1751195470099,-3934.62,0.00028219,3]
[368525441,1751195470109,-871.69,0.00028219,3]
[368525442,1751195470118,-490.0,0.00028219,3]
[368525443,1751195470128,-490.0,0.00028219,3]
[368525444,1751195470137,-1156.17,0.00028219,3]
[368525445,1751195470146,-490.0,0.00028219,3]
[368525446,1751195470156,-490.0,0.00028219,3]
[368525447,1751195470167,-490.0,0.00028219,3]
[368525448,1751195470176,-490.0,0.00028219,3]
[368525449,1751195470186,-1135.44,0.00028219,3]
[368525450,1751195470195,-490.0,0.00028219,3]
[368525451,1751195470204,-490.0,0.00028219,3]
[368525452,1751195470213,-5438.07,0.00028219,3]
[368525453,1751195470223,-3395.49,0.00028219,3]
[368525454,1751195470233,-2131.93,0.00028219,3]
[368525455,1751195470243,-490.0,0.00028219,3]
[368525456,1751195470252,-595.7,0.00028219,3]
[368525457,1751195470261,-490.0,0.00028219,3]
[368525458,1751195470270,-1160.67,0.00028219,3]
[368525459,1751195470280,-1082.12,0.00028219,3]
[368525460,1751195470290,-1291.41,0.00028219,3]
[368525461,1751195470302,-3297.43,0.00028219,3]
[368525462,1751195470314,-490.0,0.00028219,3]
[368525463,1751195470328,-1219.38,0.00028219,3]
[368525464,1751195470343,-490.0,0.00028219,3]
[368525465,1751195470352,-1351.77,0.00028219,3]
[368525466,1751195470362,-1046.99,0.00028219,3]
[368525467,1751195470374,-490.0,0.00028219,3]
[368525468,1751195470384,-874.34,0.00028219,3]
[368525469,1751195470393,-490.0,0.00028219,3]
[368525470,1751195470403,-490.0,0.00028219,3]
[368525471,1751195470412,-490.0,0.00028219,3]
[368525472,1751195470421,-1084.91,0.00028219,3]
[368525473,1751195470430,-1243.77,0.00028219,3]
[368525474,1751195470440,-2069.3,0.00028219,3]
[368525475,1751195470450,-523.8,0.00028219,3]
[368525476,1751195470459,-664.94,0.00028219,3]
[368525477,1751195470469,-490.0,0.00028219,3]
[368525478,1751195470477,-1431.47,0.00028219,3]
[368525479,1751195470486,-490.0,0.00028219,3]
[368525480,1751195470496,-1230.19,0.00028219,3]
[368525481,1751195470506,-6887.93,0.00028219,3]
[368525482,1751195470515,-490.0,0.00028219,3]
[368525483,1751195470524,-1307.69,0.00028219,3]
[368525484,1751195470533,-2182.43,0.00028219,3]
[368525485,1751195470542,-836.9,0.00028219,3]
[368525486,1751195470551,-7977.88,0.00028219,3]
[368525487,1751195470561,-15438.68,0.00028219,3]
[368525488,1751195470573,-490.0,0.00028219,3]
[368525489,1751195470584,-490.0,0.00028219,3]
[368525490,1751195470594,-1062.58,0.00028219,3]
[368525491,1751195470604,-946.94,0.00028219,3]
[368525492,1751195470613,-752.46,0.00028219,3]
[368525493,1751195470622,-1047.7,0.00028219,3]
[368525494,1751195470632,-951.95,0.00028219,3]
[368525495,1751195470642,-2249.11,0.00028219,3]
[368525496,1751195470652,-883.6,0.00028219,3]
[368525497,1751195470662,-1419.39,0.00028219,3]
[368525498,1751195470671,-1046.27,0.00028219,3]
[368525499,1751195470680,-490.0,0.00028219,3]
[368525500,1751195470689,-490.0,0.00028219,3]
[368525501,1751195470698,-1233.28,0.00028219,3]
[368525502,1751195470707,-490.0,0.00028219,3]
[368525503,1751195470716,-490.0,0.00028219,3]
[368525504,1751195470727,-1053.68,0.00028219,3]
[368525505,1751195470736,-1876.95,0.00028219,3]
[368525506,1751195470746,-1437.9,0.00028219,3]
[368525507,1751195470756,-577.96,0.00028219,3]
[368525508,1751195470766,-2637.31,0.00028219,3]
[368525509,1751195470775,-858.76,0.00028219,3]
[368525510,1751195470784,-1212.63,0.00028219,3]
[368525511,1751195470794,-1172.02,0.00028219,3]
[368525512,1751195470803,-490.0,0.00028219,3]
[368525513,1751195470812,-939.2,0.00028219,3]
[368525514,1751195470823,-490.0,0.00028219,3]
[368525515,1751195470833,-1487.73,0.00028219,3]
[368525516,1751195470843,-1475.83,0.00028219,3]
[368525517,1751195470852,-490.0,0.00028219,3]
[368525518,1751195470862,-513.84,0.00028219,3]
[368525519,1751195470871,-581.65,0.00028219,3]
[368525520,1751195470881,-1094.1,0.00028219,3]
[368525521,1751195470890,-490.0,0.00028219,3]
[368525522,1751195470899,-1624.17,0.00028219,3]
[368525523,1751195470909,-1150.15,0.00028219,3]
[368525524,1751195470918,-2369.11,0.00028219,3]
[368525525,1751195470927,-3721.52,0.00028219,3]
[368525526,1751195470937,-934.06,0.00028219,3]
[368525527,1751195470946,-840.28,0.00028219,3]